{"text_format":"1","workbook":"xlsx","n_sheets":2,"sheets":["Spreadsheets","PlotDat2"],"not_rendered":{"charts":0,"images":0,"macros":1,"external_links":0,"defined_names":3,"comments":0,"pivot_tables":0},"unopened":[],"bounds":{"document_bytes":16777216,"sheet_cells":100000,"rows_first":2000,"rows_last":500,"rows_between":2000,"halvings":0,"cell_chars":16384,"cell_head_chars":4096},"cells_cut":0,"cells_raw":0,"read":"whole","date_system":"1900"}

{"sheet":"Spreadsheets","index":0,"n_rows":253,"n_cols":20,"rows_kept":253,"cut":false,"hidden":false,"merged":[]}
["No.","Magazine Reference","No.","Spreadsheet","Microsoft Excel Hyperlink","No.","Negative","Earth","Galaxy","Universe","K","Ar","Re","Pb","Th",235,238,"Sm","Rb","Lu"]
[1,"Lithos, Volume  126, 2011,  Pages 233-247",1,"Future_Ages_13","http://www.creationismonline.com/YEC/Future.xlsm",1,17,4,1,1,null,null,15,null,null,null,null,1,null,5]
[2,"Lithos, Volume 126, 2011, Pages 233-247",2,"Greater_03","http://www.creationismonline.com/YEC/Impossible.xlsm",2,16,2,1,1,null,null,13,null,null,null,null,1,null,5]
[3,"Geochemica et Cosmochimica Acta, 1995, Volume 59, Number 5, Pages 959-977",3,"Older_06","http://www.creationismonline.com/YEC/Impossible.xlsm",3,null,3,1,1,null,null,null,null,null,null,null,null,3]
[4,"Lithos, Volume 125, 2011, Pages 405-422",4,"Older_07","http://www.creationismonline.com/YEC/Impossible.xlsm",4,13,1,1,1,null,null,13]
[5,"International Journal Earth Science, 2012, Volume 101, Pages 1091-1109",5,"Older_11","http://www.creationismonline.com/YEC/Impossible.xlsm",5,6,1,1,1,null,null,null,null,null,null,null,4,null,3]
[6,"Earth and Planetary Science Letters, 1995, Volume 134, Pages 341-357",6,"To_Old_02","http://www.creationismonline.com/YEC/Impossible.xlsm",6,null,4,2,1,null,null,4]
[7,"Chemical Geology 236 (2007) Pages 27-41",7,"Excellent_10","http://www.creationismonline.com/YEC/Excellent.xlsm",7,null,42,null,1,null,null,null,44]
[8,"Earfh and Planetary Science Letters, 94 (1989) Pages 236-244",8,"Excellent_13","http://www.creationismonline.com/YEC/Excellent.xlsm",8,null,16,null,1,null,null,null,52]
[9,"Geological Society Of London, Special Publications, 2004, Volume 229, Pages 133-150.",9,"Excellent_34","http://www.creationismonline.com/YEC/Excellent.xlsm",9,null,26,3,1,null,null,null,26]
[10,"Earth and Planetary Science Letters 134 (1995) 169-185",10,"Th_232_03","http://www.creationismonline.com/YEC/Research.xlsm",10,null,46,4,1,null,null,null,20,20,null,6]
[11,"Journal Of Petrology, 2009, Volume 50, Number 10, Pages 1857-1898",11,"Nd_Sm_11","http://www.creationismonline.com/YEC/Neodymium_Samarium.xlsm",11,39,1,null,1,null,null,15,null,null,null,null,6,null,24]
[12,"Journal Of Geophysical Research, 1998, Volume 103, Number B9, Pages 20,963-20,979",12,"Nd_Sm_13","http://www.creationismonline.com/YEC/Neodymium_Samarium.xlsm",12,null,56,6,1,null,null,null,27,22,null,9]
[13,"Earth and Planetary Science Letters, Volume 17, 1973, Pages 324-337",13,"Rb-Sr_08","http://www.creationismonline.com/YEC/Rubidium_Strontium_01.xlsm",13,4,1,1,1,null,null,null,null,null,null,null,null,6]
[14,"Earth and Planetary Science Letters, Volume 80, 1986, Pages 281-298",14,"Rb-Sr_18","http://www.creationismonline.com/YEC/Rubidium_Strontium_01.xlsm",14,2,1,1,1,null,null,null,null,null,null,null,null,3]
[15,"Earth and Planetary Science Letters, Volume 134, 1995, Pages 23-36",15,"Rb-Sr_24","http://www.creationismonline.com/YEC/Rubidium_Strontium_01.xlsm",15,7,1,1,1,null,null,null,null,null,null,null,null,8]
[16,"Earth and Planetary Science Letters, Volume 134, 1995, Pages 169-185",16,"Rb-Sr_25","http://www.creationismonline.com/YEC/Rubidium_Strontium_01.xlsm",16,null,46,null,1,null,null,null,20,20,null,7]
[17,"Geochimica et Cosmochimica Acta, Volume 71, 2007, Pages 3656-3671",17,"Rb-Sr_30","http://www.creationismonline.com/YEC/Rubidium_Strontium_01.xlsm",17,null,13,1,1,null,null,null,6,null,null,5,null,3]
[18,"Geochimica et Cosmochimica Acta, Volume 73, 2009, Pages 3963-3980",18,"Rb-Sr_31","http://www.creationismonline.com/YEC/Rubidium_Strontium_01.xlsm",18,null,3,2,1,null,null,null,null,null,null,null,null,3]
[19,"Journal Of Petrology, 2009, Volume 50, Number 10, Pages 1857-1898",19,"Rb-Sr_38","http://www.creationismonline.com/YEC/Rubidium_Strontium_01.xlsm",19,39,1,null,1,null,null,15,null,null,null,null,6,null,24]
[20,"Journal Of Geophysical Research, 1998, Volume 103, Number B9, Pages 20,963-20,979",20,"Rb-Sr_49","http://www.creationismonline.com/YEC/Rubidium_Strontium_01.xlsm",20,null,56,6,1,null,null,null,27,22,null,8]
[21,"Earth and Planetary Science Letters, 1989, Volume 94, Pages 239",21,"Very_Old_A_4","http://www.creationismonline.com/YEC/Very_Old_A_4.xls",21,null,14,3,1,null,null,null,11,null,null,3]
[22,"Economic Geology, 2002, Volume 97, Pages 23 - 42",22,"Ages_001","http://www.creationismonline.com/YEC/Dating_Methods.xlsm",22,null,4,1,1,null,null,null,null,null,null,null,null,4]
[23,"Earth and Planetary Science Letters, 1974, Volume 22, Pages 256 - 266",23,"Ages_002","http://www.creationismonline.com/YEC/Dating_Methods.xlsm",23,null,1,1,1,null,1]
[24,"Meteoritics And Planetary Science, 1998, Volume 33, Pages 641 - 453",24,"Birck","http://www.creationismonline.com/YEC/Dating_Methods.xlsm",24,null,4,1,1,null,null,null,13]
[25,"Meteoritics And Planetary Science, 1997, Volume 32, Pages 647 - 670",25,"Kunz ","http://www.creationismonline.com/YEC/Dating_Methods.xlsm",25,null,14,3,1,null,null,14]
[26,"Geochimica et Cosmochimica Acta, 1989, Volume 53, Page 1591",26,"Older_5","http://www.creationismonline.com/YEC/Dating_Methods.xlsm",26,7,8,2,1,null,6,null,5]
[27,"Earth And Planetary Science Letters, 1995, Volume 134, Page 344",27,"Older_3","http://www.creationismonline.com/YEC/Dating_Methods.xlsm",27,null,4,3,1,null,null,null,4]
[28,"Earth And Planetary Science Letters, 2004, Volume 223, Page 360",28,"Older_1","http://www.creationismonline.com/YEC/Dating_Methods.xlsm",28,null,22,2,1,null,null,2]
[29,"Earth And Planetary Science Letters, 1994, Volume 126, Page 460",29,"Older_2","http://www.creationismonline.com/YEC/Dating_Methods.xlsm",29,null,2,1,1,null,null,null,4,18]
[30,"Earth and Planetary Science Letters, 1995, Volume 134, Pages 341-357",30,"Pearson","http://www.creationismonline.com/YEC/Dating_Methods.xlsm",30,null,4,3,1]
[31,"Geochemica Et Cosmochemica Acta, 1958, Volume 15, Pages 40 - 50",31,"Stoenner","http://www.creationismonline.com/YEC/Dating_Methods.xlsm",31,null,17,6,1,17]
[32,"Geochimica et Cosmochimica Acta, 2010, Volume 74, Pages 1417-1435",32,"Thorium_B","http://www.creationismonline.com/YEC/Th-Pb.xlsm",32,null,20,1,1,null,null,null,17,2,null,1]
[33,"Precambrian Research, Volume 118, 2002, Pages 267-283",33,"Older_05","http://www.creationismonline.com/YEC/Impossible.xlsm",33,null,9,2,2,null,null,9]
[34,"Earth and Planetary Science Letters, 2002, Volume 203, Pages 651-663",34,"To_Old_03","http://www.creationismonline.com/YEC/Impossible.xlsm",34,25,7,2,2,null,null,33]
[35,"Lithos, Volume 77, 2004, Pages 453-472",35,"Negative_19","http://www.creationismonline.com/YEC/Negative.xlsm",35,16,22,2,2,null,null,8,18,null,null,null,7,null,6]
[36,"International Earth Science, 2002, Volume 91, Pages 406-432",36,"232_Th_10","http://www.creationismonline.com/YEC/Th-Pb.xlsm",36,null,17,3,2,null,null,null,3,15]
[37,"Economic Geology, 2011, Volume 106, pages 835–867",37,"232_Th_11","http://www.creationismonline.com/YEC/Th-Pb.xlsm",37,null,6,3,2,null,null,null,null,6]
[38,"Meteoritics & Planetary Science 46, Nr 1, 35-52 (2011)",38,"Pb-206_08","http://www.creationismonline.com/YEC/Lead_206_207.xlsm",38,null,28,3,2,null,null,null,6,null,10]
[39,"Geochimica et Cosmochimica Acta, 1990, Voume 54, Pages 3509-3523",39,"Rb-Sr_02","http://www.creationismonline.com/YEC/Rubidium_Strontium_01.xlsm",39,null,36,9,2,null,null,null,null,null,null,null,null,37]
[40,"Journal Of Petrology, 1998, Volume 39, Number 4, Pages 711-748",40,"Rb-Sr_44","http://www.creationismonline.com/YEC/Rubidium_Strontium_01.xlsm",40,null,92,2,2,null,null,null,30,25,23,17]
[41,"Geochimica et Cosmochimica Acta, 2009, Volume 73, Pages 3963-3980",41,"Rb-Sr_15","http://www.creationismonline.com/YEC/Rubidium_Strontium_02.xlsm",41,null,3,3,2,null,null,null,null,null,null,null,null,3]
[42,"Lithos, 2003, Volume 71, Pages 323- 336",42,"Very_Old_10","http://www.creationismonline.com/YEC/Good.xlsm",42,1,5,2,2,null,null,8]
[43,"Journal Of Petrology, 1998, Volume 39, Number 4, Pages 711-748",43,"Iso_Plot_005","http://www.creationismonline.com/YEC/Plot_Index.xlsm",43,null,95,2,2,null,null,null,30,25,28,21]
[44,"Geochemica Et Cosmochemica Acta, 1990, Volume 54, pages 2549 - 2564",44,"BOGARD_A","http://www.creationismonline.com/YEC/Dating_Methods.xlsm",44,null,15,3,2,null,15]
[45,"Gondwana Research, 2005, Volume 8, Number 4, Pages 617-621",45,"Itaya","http://www.creationismonline.com/YEC/Dating_Methods.xlsm",45,null,6,4,2,null,null,6]
[46,"Meteoritics And Planetary Science, 2009, Volume 44, Number 2, Pages 293 - 321",46,"Korochantseva","http://www.creationismonline.com/YEC/Dating_Methods.xlsm",46,null,46,9,2,null,46]
[47,"Geochemica Et Cosmochemica Acta, 1976, Volume 40, pages 617 - 634",47,"Tatsumoto","http://www.creationismonline.com/YEC/Dating_Methods.xlsm",47,null,60,6,2,null,null,null,null,16,18,28]
[48,"Lithos, Volume  142-143, 2012, Pages 161-181",48,"Future_Ages_02","http://www.creationismonline.com/YEC/Future.xlsm",48,13,11,3,3,null,null,null,null,null,null,null,13,15,22]
[49,"Journal Of Petrology, 2007, Volume 48, Number 3, Pages 589-625",49,"To_Old_01","http://www.creationismonline.com/YEC/Impossible.xlsm",49,27,4,3,3,null,null,4,null,null,null,null,23,null,6]
[50,"Journal Of Petrology, 1998, Volume 39, Number 5, Pages 859-880 ",50,"Nd_Sm_12","http://www.creationismonline.com/YEC/Neodymium_Samarium.xlsm",50,13,21,3,3,null,null,null,17,null,null,null,null,17]
[51,"Earth and Planetary Science Letters, Volume 37, 1977, Pages 1-12",51,"Rb-Sr_09","http://www.creationismonline.com/YEC/Rubidium_Strontium_01.xlsm",51,3,11,3,3,null,null,null,2,9,3,9,null,5]
[52,"Journal Of Petrology, 1998, Volume 39, Number 5, Pages 859-880 ",52,"Rb-Sr_42","http://www.creationismonline.com/YEC/Rubidium_Strontium_01.xlsm",52,13,21,null,3,null,null,null,17,null,null,null,null,17]
[53,"Earth And Planetary Science Letters, 1972, Volume 14, Pages 281 - 304.",53,"Wasserburg","http://www.creationismonline.com/YEC/Dating_Methods.xlsm",53,null,80,7,3,null,null,null,22,20,19,19]
[54,"Journal Of Petrology, Volume 0, Number 0, Pages 1-32, 2012 ",54,"GOOD_M","http://www.creationismonline.com/YEC/GOOD.xlsm",54,null,49,4,4,null,null,null,23,21,null,3]
[55,"Geochimica et Cosmochimica Acta, 2008, Volume 72, Pages 5722-5756",55,"To_Old_05","http://www.creationismonline.com/YEC/Impossible.xlsm",55,10,8,4,4,null,null,18]
[56,"Chemical Geology, 1985, Volume 52, Pages 249-271",56,"To_Old_06","http://www.creationismonline.com/YEC/Impossible.xlsm",56,4,8,4,4,null,null,null,null,null,null,null,null,12]
[57,"Journal Of Petrology, April 11, 2012, Pages 1-32",57,"Excellent_39","http://www.creationismonline.com/YEC/Excellent.xlsm",57,null,47,4,4,null,null,null,5]
[58,"Earth And Planetary Science Letters 7 (1969) 141-147",58,"Pb_207_07","http://www.creationismonline.com/YEC/Research.xlsm",58,null,1,8,4,null,null,null,null,null,null,10]
[59,"Geochimica et Cosmochimica Acta, 1991, Volume 55, Pages 829-848",59,"Rb-Sr_01","http://www.creationismonline.com/YEC/Rubidium_Strontium_02.xlsm",59,null,14,6,4,null,null,null,null,null,null,null,3,11]
[60,"Geochimica et Cosmochimica Acta, 2003, Volume 67, Number 23, Pages 4577-4595",60,"Rb-Sr_06","http://www.creationismonline.com/YEC/Rubidium_Strontium_02.xlsm",60,null,19,5,4,null,null,null,8,null,6,5]
[61,"Geochemica Et Cosmochemica Acta, 1970, Volume 34, pages 713 - 725",61,"Riley","http://www.creationismonline.com/YEC/Dating_Methods.xlsm",61,null,8,4,4,null,8]
[62,"Journal Of Petrology, 2000, Volume 41, Number 6, Pages 759-788",62,"Rb-Sr_36","http://www.creationismonline.com/YEC/Rubidium_Strontium_01.xlsm",62,null,10,5,5,null,null,null,5,null,null,5]
[63,"Geochemica Et Cosmochemica Acta, 2008, Volume 72, Pages 2067 - 2089",63,"Amelin_F","http://www.creationismonline.com/YEC/Dating_Methods.xlsm",63,null,9,5,5,null,null,null,null,4,null,5]
[64,"Lithos, Volume 102, 2008, Pages 43-64",64,"Future_Ages_05","http://www.creationismonline.com/YEC/Future.xlsm",64,90,22,6,6,null,null,112]
[65,"Earth and Planetary Science Letters, Volume 75, 1985, Pages 354-368",65,"Rb-Sr_17","http://www.creationismonline.com/YEC/Rubidium_Strontium_01.xlsm",65,null,35,3,6,null,null,null,25,null,null,null,null,15]
[66,"Journal Of Petrology, 1999, Volume 40, Number 9, Pages 1399-1424",66,"Rb-Sr_48","http://www.creationismonline.com/YEC/Rubidium_Strontium_01.xlsm",66,null,15,6,6,null,null,null,6,6,null,6]
[67,"Meteoritics & Planetary Science, 2004, Volume 39, Number 12, Pages 2033 - 2041",67,"Iso_Plot_001","http://www.creationismonline.com/YEC/Plot_Index.xlsm",67,null,37,12,6,null,null,null,14,17,null,8]
[68,"Journal Of Petrology, 1999, Volume 40, Number 9, Pages 1399-1424",68,"Iso_Plot_016","http://www.creationismonline.com/YEC/Plot_Index.xlsm",68,null,15,6,6,null,null,null,6,6,null,3]
[69,"http://www.earthchem.org/deeplith/search",69,"Very_Old_C_1","http://www.creationismonline.com/YEC/Very_Old_C_1.xls",69,null,245,11,6,null,null,null,216,10,null,27]
[70,"Lithos, Volume  117, 2010, Pages 1-19",70,"Future_Ages_01","http://www.creationismonline.com/YEC/Future.xlsm",70,19,20,8,7,null,null,null,null,null,null,null,null,39]
[71,"Lithos, Volume 102, 2008, Pages 43-64",71,"Older_04","http://www.creationismonline.com/YEC/Impossible.xlsm",71,73,19,9,7,null,null,92]
[72,"Geochimica et Cosmochimica Acta 72 (2008) 5799-5818",72,"Pb-206_23","http://www.creationismonline.com/YEC/Lead_206_207.xlsm",72,null,66,12,7,null,null,null,25,10,null,6]
[73,"www.geo.uu.nl/~kikeb/thesis/database/upb/KB770.xls",73,"Very_Old_B","http://www.creationismonline.com/YEC/Very_Old_C.xls",73,null,181,27,7,null,null,null,null,181]
[74,"Geochimica et Cosmochimica Acta 73 (2009) 469-488",74,"Thorium_C","http://www.creationismonline.com/YEC/Th-Pb.xlsm",74,null,52,12,7,null,null,null,36,9,null,5]
[75,"Chemical Geology, Volume 208, 2004, Pages 89-118",75,"Greater_02","http://www.creationismonline.com/YEC/Impossible.xlsm",75,93,35,11,8,null,null,126]
[76,"Lithos, Volume 117, 2010, Pages 1-19",76,"Older_01","http://www.creationismonline.com/YEC/Impossible.xlsm",76,15,15,8,8,null,null,null,null,null,null,null,36]
[77,"Geochimica et Cosmochimica Acta, Volume 73, 2009, Pages 469-488",77,"232_Th_04","http://www.creationismonline.com/YEC/Th-Pb.xlsm",77,null,53,13,8,null,null,null,37,11,null,6]
[78,"Geology Magazine, Volume 141, Number 1, 2004, Pages 55-62",78,"GOOD_D","http://www.creationismonline.com/YEC/GOOD.xlsm",78,null,76,9,9,null,null,null,38,null,null,38]
[79,"Contrib Mineral Petrology, 2002, Volume 144, Pages 241-253",79,"232_Th_09","http://www.creationismonline.com/YEC/Th-Pb.xlsm",79,null,28,9,9,null,null,null,10,10,10,10]
[80,"Earth and Planetary Science Letters, 42 (1979) Pages 368-378",80,"Excellent_22","http://www.creationismonline.com/YEC/Excellent.xlsm",80,null,76,17,9,null,null,null,20]
[81,"Earth and Planetary Science Letters, Volume 105, 1991, Pages 149-169",81,"Nd_Sm_07","http://www.creationismonline.com/YEC/Neodymium_Samarium.xlsm",81,24,65,12,9,null,null,null,26,24,null,16,null,24]
[82,"Earth and Planetary Science Letters, Volume 105, 1991, Pages 149-169",82,"Rb-Sr_22","http://www.creationismonline.com/YEC/Rubidium_Strontium_01.xlsm",82,24,65,12,9,null,null,null,26,24,null,16,null,24]
[83,"Journal Of Petrology, 2004, Volume 45, Number 3, Pages 555-607",83,"Rb-Sr_45","http://www.creationismonline.com/YEC/Rubidium_Strontium_01.xlsm",83,null,44,13,9,null,null,null,12,12,6,11]
[84,"Geochimica et Cosmochimica Acta, 2008, Volume 72, Pages 2067 - 2089",84,"Rb-Sr_50","http://www.creationismonline.com/YEC/Rubidium_Strontium_01.xlsm",84,3,36,11,9,null,null,null,17,6,null,22]
[85,"Journal Of Petrology, 2004, Volume 45, Number 3, Pages 555-607",85,"Iso_Plot_006","http://www.creationismonline.com/YEC/Plot_Index.xlsm",85,null,44,13,9,null,null,null,13,13,6,12]
[86,"Chemical Geology, Volume 277, 2010, Pages 227-244",86,"GOOD_N","http://www.creationismonline.com/YEC/GOOD.xlsm",86,null,39,14,10,null,null,null,13,13,null,13]
[87,"Chemical Geology, Volume 277 (2010), Pages 227-244",87,"Excellent_44","http://www.creationismonline.com/YEC/Excellent.xlsm",87,null,26,13,10,null,null,null,7]
[88,"Earth and Planetary Science Letters, Volume 86, 1987, Pages 327-340",88,"Rb-Sr_19","http://www.creationismonline.com/YEC/Rubidium_Strontium_01.xlsm",88,2,10,10,10,null,null,null,null,null,null,null,null,12]
[89,"Precambrian Research, 17 (1982) 199--214",89,"Diamonds_03","http://www.creationismonline.com/YEC/Good.xlsm",89,null,10,10,10,null,null,null,null,10]
[90,"Contribution Mineral Petrology, 2002, Volume 144, Pages 241-253",90,"232_Th_08","http://www.creationismonline.com/YEC/Th-Pb.xlsm",90,null,11,11,11,null,null,null,3,11]
[91,"Earth and Planetary Sctence Letters, 113 (1992) 107-128",91,"Pb-206_18","http://www.creationismonline.com/YEC/Lead_206_207.xlsm",91,null,92,13,11,null,null,null,50,null,null,29]
[92,"Earth and Planetary Science Letters, Volume 42, 1979, Pages 58-70",92,"Rb-Sr_03","http://www.creationismonline.com/YEC/Rubidium_Strontium_01.xlsm",92,null,26,12,11,null,null,null,14,null,null,null,null,12]
[93,"Canadian Journal Of Earth Science, 1987, Volume 24, Pages 24-30",93,"Rb-Sr_08","http://www.creationismonline.com/YEC/Rubidium_Strontium_02.xlsm",93,null,19,12,12,null,null,null,6,null,6,6,null,1]
[94,"Chemical Geology, 1990, Volume 80, pages 201 - 204",94,"Maluski","http://www.creationismonline.com/YEC/Dating_Methods.xlsm",94,null,104,40,12,null,null,104]
[95,"Geochimica et Cosmochimica Acta, 2008, Volume 72, Pages 2067 - 2089",95,"Iso_Plot_018","http://www.creationismonline.com/YEC/Plot_Index.xlsm",95,null,45,16,13,null,null,null,19,2,null,18]
[96,"Geochimica et Cosmochimica Acta, 1993, Volume 57, Pages 4687-4702",96,"Nd_Sm_09","http://www.creationismonline.com/YEC/Neodymium_Samarium.xlsm",96,null,72,19,14,null,null,null,28,23,9,24]
[97,"Geochimica et Cosmochimica Acta, 1993, Volume 57, Pages 4687-4702",97,"Rb-Sr_26","http://www.creationismonline.com/YEC/Rubidium_Strontium_01.xlsm",97,null,72,19,14,null,null,null,23,24,9,24]
[98,"Earth and Planetary Science Letters, Volume 113, 1992, Pages 107-128",98,"Nd_Sm_08","http://www.creationismonline.com/YEC/Neodymium_Samarium.xlsm",98,null,106,22,18,null,null,null,50,24,null,32]
[99,"Earth and Planetary Science Letters, Volume 113, 1992, Pages 107-128",99,"Rb-Sr_23","http://www.creationismonline.com/YEC/Rubidium_Strontium_01.xlsm",99,null,106,22,18,null,null,null,50,24,null,32]
[100,"http://pubs.usgs.gov/of/2008/1142/tables/table04.xls",100,"Very_Old_A_9","http://www.creationismonline.com/YEC/Very_Old_A_9.xls",100,null,57,23,18,null,null,null,20,20,null,18]
[101,"Earth and Planetary Science Letters, Volume 319-320, 2012, Pages 197-206",101,"232_Th_02","http://www.creationismonline.com/YEC/Th-Pb.xlsm",101,null,49,23,19,null,null,null,13,12,12,12]
[102,"Earth and Planetary Science Letters 319-320 (2012) 197-206",102,"Th_232_01","http://www.creationismonline.com/YEC/Research.xlsm",102,null,35,24,19,null,null,null,13,11,null,11]
[103,"Earth and Planetary Science Letters, 1983, Volume 62, pages 132 - 146",103,"BOGARD_C","http://www.creationismonline.com/YEC/Dating_Methods.xlsm",103,null,34,20,20,null,4,null,10,10,null,10]
[104,"Canadian Journal Of Earth Science, 2006, Volume 43, Pages 1419-1444",104,"Nd_Sm_01","http://www.creationismonline.com/YEC/Neodymium_Samarium.xlsm",104,null,82,39,21,null,null,null,28,27,null,27]
[105,"Canadian Journal Of Earth Science, 2006, Volume 43, Pages 1419-1444",105,"Rb-Sr_07","http://www.creationismonline.com/YEC/Rubidium_Strontium_01.xlsm",105,null,82,39,21,null,null,null,28,27,null,27]
[106,"Journal Of Petrology, 2001, Volume 42, Number 4, Pages 731-763",106,"Rb-Sr_35","http://www.creationismonline.com/YEC/Rubidium_Strontium_01.xlsm",106,null,93,28,21,null,null,null,56,null,null,37]
[107,"Journal Of Petrology, 2001, Volume 42, Number 4, Pages 731-763",107,"Iso_Plot_013","http://www.creationismonline.com/YEC/Plot_Index.xlsm",107,null,38,28,21,null,null,null,1,null,null,37]
[108,"Geochimica et Cosmochimica Acta, 1994, Volume 58, Number 15, Pages 3155-3169",108,"Thorium_D","http://www.creationismonline.com/YEC/Th-Pb.xlsm",108,null,169,34,21,null,null,null,100,1,null,69]
[109,"http://geosphere.gsapubs.org/content/suppl/2009/02/18/3.6.683.DC1/00138_App3.xls",109,"Very_Old_E","http://www.creationismonline.com/YEC/Very_Old_E.xls",109,null,174,97,26,null,null,null,70,98,null,10]
[110,"Geochimica et Cosmochimica Acta, 2006, Volume 70, Pages 5990-6015",110,"Rb-Sr_11","http://www.creationismonline.com/YEC/Rubidium_Strontium_02.xlsm",110,null,30,30,30,null,null,null,null,null,null,null,30]
[111,"Geochimica et Cosmochimica Acta, 1995, Volume 59, Number 11, Pages 2319-2329",111,"Thorium_E","http://www.creationismonline.com/YEC/Th-Pb.xlsm",111,null,63,32,30,null,null,null,19,16,null,15]
[112,"Journal Of Geophysical Research, 1981, Volume 86, Number B11, Pages 10663-10680",112,"Rb-Sr_14","http://www.creationismonline.com/YEC/Rubidium_Strontium_02.xlsm",112,null,79,46,32,null,null,null,25,28,null,26]
[113,"Journal Of Petrology, 1998, Volume 39, Number 7, Pages 1285-1306",113,"Iso_Plot_004","http://www.creationismonline.com/YEC/Plot_Index.xlsm",113,null,131,38,32,null,null,null,59,45,null,30]
[114,"http://earthref.org/",114,"Very_Old_C_3","http://www.creationismonline.com/YEC/Very_Old_C_3.xls",114,null,204,46,37,null,null,null,102,23,39,40]
[115,"Mineral Deposita, 2010, Volume 45, Pages 393-410",115,"232_Th_06","http://www.creationismonline.com/YEC/Th-Pb.xlsm",115,null,120,49,39,null,null,null,48,34,18,18]
[116,"http://petrology.oxfordjournals.org/content/suppl/2004/09/24/egh060.DC1/Table_3.xls",116,"Very_Old_G","http://www.creationismonline.com/YEC/Very_Old_G.xls",116,null,null,45,45,null,null,null,null,45]
[117,"Journal Of Petrology, 2005, Volume 46, Number 4, Pages 829-858",117,"Rb-Sr_47","http://www.creationismonline.com/YEC/Rubidium_Strontium_01.xlsm",117,null,192,75,57,null,null,null,70,70,null,52]
[118,"Journal Of Petrology, 2005, Volume 46, Number 4, Pages 829-858",118,"Iso_Plot_009","http://www.creationismonline.com/YEC/Plot_Index.xlsm",118,null,192,75,57,null,null,null,70,70,null,55]
[119,"Gcochimica et Cosmochimtca Acta, 1995, Volume 59, Number 2, Pages 381-390",119,"Thorium_A","http://www.creationismonline.com/YEC/Th-Pb.xlsm",119,null,120,77,73,null,null,null,42,37,null,40]
[120,"Economic Geology, Volume 97, 2002, Pages 23-42",120,"Rb-Sr_05","http://www.creationismonline.com/YEC/Rubidium_Strontium_01.xlsm",120,null,221,219,218,null,null,null,null,null,null,null,null,224]
[121,"http://geosphere.gsapubs.org/content/suppl/2010/09/29/6.5.663.DC1/530_supp1.xls",121,"Very_Old_A","http://www.creationismonline.com/YEC/Very_Old_A.xls",121,null,276,261,253,null,null,null,19,257,null,19]
[122,"www.ruf.rice.edu/~ctlee/BOXMODEL.xls",122,"Very_Old_R","http://www.creationismonline.com/YEC/Very_Old_R.xls",122,null,1122,437,412,null,null,null,441,147,51,189]
[null,null,null,null,null,null,{"$f":"SUM(G1:G123)","v":618},6751,2440,1985,17,80,611,2486,1693,{"$f":"SUM(P1:P123)","v":508},{"$f":"SUM(Q1:Q123)","v":1505},130,498,95]
[null,null,null,null,null,null,"Negative","Earth","Galaxy","Universe","K","Ar","Re","Pb","Th",235,238,"Sm","Rb","Lu"]
[]
[]
[]
[]
[]
[]
[null,{"$f":"(\"http://www.creationismonline.com/YEC/\" & E132)","v":"http://www.creationismonline.com/YEC/Future.xlsm"},null,null,"Future.xlsm"]
[null,{"$f":"(\"http://www.creationismonline.com/YEC/\" & E133)","v":"http://www.creationismonline.com/YEC/Impossible.xlsm"},null,null,"Impossible.xlsm"]
[null,"http://www.creationismonline.com/YEC/Impossible.xlsm",null,null,"Impossible.xlsm"]
[null,"http://www.creationismonline.com/YEC/Impossible.xlsm",null,null,"Impossible.xlsm"]
[null,"http://www.creationismonline.com/YEC/Impossible.xlsm",null,null,"Impossible.xlsm"]
[null,"http://www.creationismonline.com/YEC/Impossible.xlsm",null,null,"Impossible.xlsm"]
[null,"http://www.creationismonline.com/YEC/Excellent.xlsm",null,null,"Excellent.xlsm"]
[null,"http://www.creationismonline.com/YEC/Excellent.xlsm",null,null,"Excellent.xlsm"]
[null,"http://www.creationismonline.com/YEC/Excellent.xlsm",null,null,"Excellent.xlsm"]
[null,"http://www.creationismonline.com/YEC/Research.xlsm",null,null,"Research.xlsm"]
[null,"http://www.creationismonline.com/YEC/Neodymium_Samarium.xlsm",null,null,"Neodymium_Samarium.xlsm"]
[null,"http://www.creationismonline.com/YEC/Neodymium_Samarium.xlsm",null,null,"Neodymium_Samarium.xlsm"]
[null,"http://www.creationismonline.com/YEC/Rubidium_Strontium_01.xlsm",null,null,"Rubidium_Strontium_01.xlsm"]
[null,"http://www.creationismonline.com/YEC/Rubidium_Strontium_01.xlsm",null,null,"Rubidium_Strontium_01.xlsm"]
[null,"http://www.creationismonline.com/YEC/Rubidium_Strontium_01.xlsm",null,null,"Rubidium_Strontium_01.xlsm"]
[null,"http://www.creationismonline.com/YEC/Rubidium_Strontium_01.xlsm",null,null,"Rubidium_Strontium_01.xlsm"]
[null,"http://www.creationismonline.com/YEC/Rubidium_Strontium_01.xlsm",null,null,"Rubidium_Strontium_01.xlsm"]
[null,"http://www.creationismonline.com/YEC/Rubidium_Strontium_01.xlsm",null,null,"Rubidium_Strontium_01.xlsm"]
[null,"http://www.creationismonline.com/YEC/Rubidium_Strontium_01.xlsm",null,null,"Rubidium_Strontium_01.xlsm"]
[null,"http://www.creationismonline.com/YEC/Rubidium_Strontium_01.xlsm",null,null,"Rubidium_Strontium_01.xlsm"]
[null,"http://www.creationismonline.com/YEC/Very_Old_A_4.xls",null,null,"Very_Old_A_4.xls"]
[null,"http://www.creationismonline.com/YEC/Dating_Methods.xlsm",null,null,"Dating_Methods.xlsm"]
[null,"http://www.creationismonline.com/YEC/Dating_Methods.xlsm",null,null,"Dating_Methods.xlsm"]
[null,"http://www.creationismonline.com/YEC/Dating_Methods.xlsm",null,null,"Dating_Methods.xlsm"]
[null,"http://www.creationismonline.com/YEC/Dating_Methods.xlsm",null,null,"Dating_Methods.xlsm"]
[null,"http://www.creationismonline.com/YEC/Dating_Methods.xlsm",null,null,"Dating_Methods.xlsm"]
[null,"http://www.creationismonline.com/YEC/Dating_Methods.xlsm",null,null,"Dating_Methods.xlsm"]
[null,"http://www.creationismonline.com/YEC/Dating_Methods.xlsm",null,null,"Dating_Methods.xlsm"]
[null,"http://www.creationismonline.com/YEC/Dating_Methods.xlsm",null,null,"Dating_Methods.xlsm"]
[null,"http://www.creationismonline.com/YEC/Dating_Methods.xlsm",null,null,"Dating_Methods.xlsm"]
[null,"http://www.creationismonline.com/YEC/Dating_Methods.xlsm",null,null,"Dating_Methods.xlsm"]
[null,"http://www.creationismonline.com/YEC/Th-Pb.xlsm",null,null,"Th-Pb.xlsm"]
[null,"http://www.creationismonline.com/YEC/Impossible.xlsm",null,null,"Impossible.xlsm"]
[null,"http://www.creationismonline.com/YEC/Impossible.xlsm",null,null,"Impossible.xlsm"]
[null,"http://www.creationismonline.com/YEC/Negative.xlsm",null,null,"Negative.xlsm"]
[null,"http://www.creationismonline.com/YEC/Th-Pb.xlsm",null,null,"Th-Pb.xlsm"]
[null,"http://www.creationismonline.com/YEC/Th-Pb.xlsm",null,null,"Th-Pb.xlsm"]
[null,"http://www.creationismonline.com/YEC/Lead_206_207.xlsm",null,null,"Lead_206_207.xlsm"]
[null,"http://www.creationismonline.com/YEC/Rubidium_Strontium_01.xlsm",null,null,"Rubidium_Strontium_01.xlsm"]
[null,"http://www.creationismonline.com/YEC/Rubidium_Strontium_01.xlsm",null,null,"Rubidium_Strontium_01.xlsm"]
[null,"http://www.creationismonline.com/YEC/Rubidium_Strontium_02.xlsm",null,null,"Rubidium_Strontium_02.xlsm"]
[null,"http://www.creationismonline.com/YEC/Good.xlsm",null,null,"Good.xlsm"]
[null,"http://www.creationismonline.com/YEC/Plot_Index.xlsm",null,null,"Plot_Index.xlsm"]
[null,"http://www.creationismonline.com/YEC/Dating_Methods.xlsm",null,null,"Dating_Methods.xlsm"]
[null,"http://www.creationismonline.com/YEC/Dating_Methods.xlsm",null,null,"Dating_Methods.xlsm"]
[null,"http://www.creationismonline.com/YEC/Dating_Methods.xlsm",null,null,"Dating_Methods.xlsm"]
[null,"http://www.creationismonline.com/YEC/Dating_Methods.xlsm",null,null,"Dating_Methods.xlsm"]
[null,"http://www.creationismonline.com/YEC/Future.xlsm",null,null,"Future.xlsm"]
[null,"http://www.creationismonline.com/YEC/Impossible.xlsm",null,null,"Impossible.xlsm"]
[null,"http://www.creationismonline.com/YEC/Neodymium_Samarium.xlsm",null,null,"Neodymium_Samarium.xlsm"]
[null,"http://www.creationismonline.com/YEC/Rubidium_Strontium_01.xlsm",null,null,"Rubidium_Strontium_01.xlsm"]
[null,"http://www.creationismonline.com/YEC/Rubidium_Strontium_01.xlsm",null,null,"Rubidium_Strontium_01.xlsm"]
[null,"http://www.creationismonline.com/YEC/Dating_Methods.xlsm",null,null,"Dating_Methods.xlsm"]
[null,"http://www.creationismonline.com/YEC/GOOD.xlsm",null,null,"GOOD.xlsm"]
[null,"http://www.creationismonline.com/YEC/Impossible.xlsm",null,null,"Impossible.xlsm"]
[null,"http://www.creationismonline.com/YEC/Impossible.xlsm",null,null,"Impossible.xlsm"]
[null,"http://www.creationismonline.com/YEC/Excellent.xlsm",null,null,"Excellent.xlsm"]
[null,"http://www.creationismonline.com/YEC/Research.xlsm",null,null,"Research.xlsm"]
[null,"http://www.creationismonline.com/YEC/Rubidium_Strontium_02.xlsm",null,null,"Rubidium_Strontium_02.xlsm"]
[null,"http://www.creationismonline.com/YEC/Rubidium_Strontium_02.xlsm",null,null,"Rubidium_Strontium_02.xlsm"]
[null,"http://www.creationismonline.com/YEC/Dating_Methods.xlsm",null,null,"Dating_Methods.xlsm"]
[null,"http://www.creationismonline.com/YEC/Rubidium_Strontium_01.xlsm",null,null,"Rubidium_Strontium_01.xlsm"]
[null,"http://www.creationismonline.com/YEC/Dating_Methods.xlsm",null,null,"Dating_Methods.xlsm"]
[null,"http://www.creationismonline.com/YEC/Future.xlsm",null,null,"Future.xlsm"]
[null,"http://www.creationismonline.com/YEC/Rubidium_Strontium_01.xlsm",null,null,"Rubidium_Strontium_01.xlsm"]
[null,{"$f":"(\"http://www.creationismonline.com/YEC/\" & E197)","v":"http://www.creationismonline.com/YEC/Rubidium_Strontium_01.xlsm"},null,null,"Rubidium_Strontium_01.xlsm"]
[null,"http://www.creationismonline.com/YEC/Plot_Index.xlsm",null,null,"Plot_Index.xlsm"]
[null,"http://www.creationismonline.com/YEC/Plot_Index.xlsm",null,null,"Plot_Index.xlsm"]
[null,"http://www.creationismonline.com/YEC/Very_Old_C_1.xls",null,null,"Very_Old_C_1.xls"]
[null,"http://www.creationismonline.com/YEC/Future.xlsm",null,null,"Future.xlsm"]
[null,"http://www.creationismonline.com/YEC/Impossible.xlsm",null,null,"Impossible.xlsm"]
[null,"http://www.creationismonline.com/YEC/Lead_206_207.xlsm",null,null,"Lead_206_207.xlsm"]
[null,"http://www.creationismonline.com/YEC/Very_Old_C.xls",null,null,"Very_Old_C.xls"]
[null,"http://www.creationismonline.com/YEC/Th-Pb.xlsm",null,null,"Th-Pb.xlsm"]
[null,"http://www.creationismonline.com/YEC/Impossible.xlsm",null,null,"Impossible.xlsm"]
[null,"http://www.creationismonline.com/YEC/Impossible.xlsm",null,null,"Impossible.xlsm"]
[null,"http://www.creationismonline.com/YEC/Th-Pb.xlsm",null,null,"Th-Pb.xlsm"]
[null,"http://www.creationismonline.com/YEC/GOOD.xlsm",null,null,"GOOD.xlsm"]
[null,"http://www.creationismonline.com/YEC/Th-Pb.xlsm",null,null,"Th-Pb.xlsm"]
[null,"http://www.creationismonline.com/YEC/Excellent.xlsm",null,null,"Excellent.xlsm"]
[null,"http://www.creationismonline.com/YEC/Neodymium_Samarium.xlsm",null,null,"Neodymium_Samarium.xlsm"]
[null,"http://www.creationismonline.com/YEC/Rubidium_Strontium_01.xlsm",null,null,"Rubidium_Strontium_01.xlsm"]
[null,"http://www.creationismonline.com/YEC/Rubidium_Strontium_01.xlsm",null,null,"Rubidium_Strontium_01.xlsm"]
[null,"http://www.creationismonline.com/YEC/Rubidium_Strontium_01.xlsm",null,null,"Rubidium_Strontium_01.xlsm"]
[null,"http://www.creationismonline.com/YEC/Plot_Index.xlsm",null,null,"Plot_Index.xlsm"]
[null,"http://www.creationismonline.com/YEC/GOOD.xlsm",null,null,"GOOD.xlsm"]
[null,"http://www.creationismonline.com/YEC/Excellent.xlsm",null,null,"Excellent.xlsm"]
[null,"http://www.creationismonline.com/YEC/Rubidium_Strontium_01.xlsm",null,null,"Rubidium_Strontium_01.xlsm"]
[null,"http://www.creationismonline.com/YEC/Good.xlsm",null,null,"Good.xlsm"]
[null,"http://www.creationismonline.com/YEC/Th-Pb.xlsm",null,null,"Th-Pb.xlsm"]
[null,"http://www.creationismonline.com/YEC/Lead_206_207.xlsm",null,null,"Lead_206_207.xlsm"]
[null,"http://www.creationismonline.com/YEC/Rubidium_Strontium_01.xlsm",null,null,"Rubidium_Strontium_01.xlsm"]
[null,"http://www.creationismonline.com/YEC/Rubidium_Strontium_02.xlsm",null,null,"Rubidium_Strontium_02.xlsm"]
[null,"http://www.creationismonline.com/YEC/Dating_Methods.xlsm",null,null,"Dating_Methods.xlsm"]
[null,"http://www.creationismonline.com/YEC/Plot_Index.xlsm",null,null,"Plot_Index.xlsm"]
[null,"http://www.creationismonline.com/YEC/Neodymium_Samarium.xlsm",null,null,"Neodymium_Samarium.xlsm"]
[null,"http://www.creationismonline.com/YEC/Rubidium_Strontium_01.xlsm",null,null,"Rubidium_Strontium_01.xlsm"]
[null,"http://www.creationismonline.com/YEC/Neodymium_Samarium.xlsm",null,null,"Neodymium_Samarium.xlsm"]
[null,"http://www.creationismonline.com/YEC/Rubidium_Strontium_01.xlsm",null,null,"Rubidium_Strontium_01.xlsm"]
[null,"http://www.creationismonline.com/YEC/Very_Old_A_9.xls",null,null,"Very_Old_A_9.xls"]
[null,"http://www.creationismonline.com/YEC/Th-Pb.xlsm",null,null,"Th-Pb.xlsm"]
[null,"http://www.creationismonline.com/YEC/Research.xlsm",null,null,"Research.xlsm"]
[null,"http://www.creationismonline.com/YEC/Dating_Methods.xlsm",null,null,"Dating_Methods.xlsm"]
[null,"http://www.creationismonline.com/YEC/Neodymium_Samarium.xlsm",null,null,"Neodymium_Samarium.xlsm"]
[null,"http://www.creationismonline.com/YEC/Rubidium_Strontium_01.xlsm",null,null,"Rubidium_Strontium_01.xlsm"]
[null,"http://www.creationismonline.com/YEC/Rubidium_Strontium_01.xlsm",null,null,"Rubidium_Strontium_01.xlsm"]
[null,"http://www.creationismonline.com/YEC/Plot_Index.xlsm",null,null,"Plot_Index.xlsm"]
[null,"http://www.creationismonline.com/YEC/Th-Pb.xlsm",null,null,"Th-Pb.xlsm"]
[null,"http://www.creationismonline.com/YEC/Very_Old_E.xls",null,null,"Very_Old_E.xls"]
[null,"http://www.creationismonline.com/YEC/Rubidium_Strontium_02.xlsm",null,null,"Rubidium_Strontium_02.xlsm"]
[null,"http://www.creationismonline.com/YEC/Th-Pb.xlsm",null,null,"Th-Pb.xlsm"]
[null,"http://www.creationismonline.com/YEC/Rubidium_Strontium_02.xlsm",null,null,"Rubidium_Strontium_02.xlsm"]
[null,"http://www.creationismonline.com/YEC/Plot_Index.xlsm",null,null,"Plot_Index.xlsm"]
[null,"http://www.creationismonline.com/YEC/Very_Old_C_3.xls",null,null,"Very_Old_C_3.xls"]
[null,"http://www.creationismonline.com/YEC/Th-Pb.xlsm",null,null,"Th-Pb.xlsm"]
[null,"http://www.creationismonline.com/YEC/Very_Old_G.xls",null,null,"Very_Old_G.xls"]
[null,"http://www.creationismonline.com/YEC/Rubidium_Strontium_01.xlsm",null,null,"Rubidium_Strontium_01.xlsm"]
[null,"http://www.creationismonline.com/YEC/Plot_Index.xlsm",null,null,"Plot_Index.xlsm"]
[null,"http://www.creationismonline.com/YEC/Th-Pb.xlsm",null,null,"Th-Pb.xlsm"]
[null,"http://www.creationismonline.com/YEC/Rubidium_Strontium_01.xlsm",null,null,"Rubidium_Strontium_01.xlsm"]
[null,"http://www.creationismonline.com/YEC/Very_Old_A.xls",null,null,"Very_Old_A.xls"]
[null,"http://www.creationismonline.com/YEC/Very_Old_R.xls",null,null,"Very_Old_R.xls"]

{"sheet":"PlotDat2","index":1,"n_rows":81,"n_cols":8,"rows_kept":81,"cut":false,"hidden":true,"merged":[]}
["Source sheet","Plot_08",1.9486000000000001,1.4E-3,0.25129304251593926,0,0.33610000000000001,2.9999999999999997E-4]
["Plot name","PbPlot2",2.2284999999999999,1.9E-3,4.5,6.0183650369106025E-3,0.38109999999999999,3.6361345022489989E-4]
["Plot Type",9,3.54,2.7000000000000001E-3,null,null,0.42609999999999998,4.405298128400012E-4]
["1st free col",9,3.5996999999999999,4.1000000000000003E-3,null,null,0.47109999999999996,5.2586043515878288E-4]
["Sigma Level",1,2.8624000000000001,8.5000000000000006E-3,null,null,0.5161,6.1471666449472396E-4]
["Absolute Errs",true,0.33610000000000001,2.9999999999999997E-4,null,null,0.56110000000000004,7.0220984816130331E-4]
["Symbol Type",12,1.2217,8.9999999999999998E-4,null,null,0.60610000000000008,7.8345133347199969E-4]
["Inverse Plot",true,"IsoLine","IsoLine",null,null,0.65110000000000012,8.5355246774029218E-4]
["Color Plot",true,null,null,null,null,0.69610000000000016,9.0762459827965975E-4]
["3D plot",false,null,null,null,null,0.7411000000000002,9.4077907240358116E-4]
["Linear",false,null,null,null,null,0.78610000000000024,9.4812723742553539E-4]
["Data Range","K3:L9",null,null,null,null,0.83110000000000028,9.2478044065900131E-4]
["Filled Symbols",true,null,null,null,null,0.87610000000000032,8.6585002941745809E-4]
["ConcAge",false,null,null,null,null,0.92110000000000036,7.6644735101438408E-4]
["ConcSwap",false,null,null,null,null,0.9661000000000004,6.2168375276325921E-4]
["1st Symbol-row",1,null,null,null,null,1.0111000000000003,4.2667058197756204E-4]
[null,null,null,null,null,null,1.0561000000000003,1.7651918597077151E-4]
[null,null,null,null,null,null,1.1011000000000002,-1.3365908794363342E-4]
[null,null,null,null,null,null,1.1461000000000001,-5.087528924521738E-4]
[null,null,null,null,null,null,1.1911,-9.5365088024137058E-4]
[null,null,null,null,null,null,1.2217,8.9999999999999998E-4]
[null,null,null,null,null,null,1.2666999999999999,9.6947336796372513E-4]
[null,null,null,null,null,null,1.3116999999999999,1.0304645993032746E-3]
[null,null,null,null,null,null,1.3566999999999998,1.0835810930299242E-3]
[null,null,null,null,null,null,1.4016999999999997,1.1294302481549504E-3]
[null,null,null,null,null,null,1.4466999999999997,1.1686194636896295E-3]
[null,null,null,null,null,null,1.4916999999999996,1.2017561386452374E-3]
[null,null,null,null,null,null,1.5366999999999995,1.2294476720330508E-3]
[null,null,null,null,null,null,1.5816999999999994,1.2523014628643455E-3]
[null,null,null,null,null,null,1.6266999999999994,1.2709249101503979E-3]
[null,null,null,null,null,null,1.6716999999999993,1.285925412902484E-3]
[null,null,null,null,null,null,1.7166999999999992,1.2979103701318802E-3]
[null,null,null,null,null,null,1.7616999999999992,1.3074871808498628E-3]
[null,null,null,null,null,null,1.8066999999999991,1.315263244067708E-3]
[null,null,null,null,null,null,1.851699999999999,1.3218459587966917E-3]
[null,null,null,null,null,null,1.8966999999999989,1.3278427240480904E-3]
[null,null,null,null,null,null,1.9416999999999989,1.3338609388331803E-3]
[null,null,null,null,null,null,1.9486000000000001,1.4E-3]
[null,null,null,null,null,null,1.9936,2.5704346320412946E-3]
[null,null,null,null,null,null,2.0386000000000002,1.5578786438601373E-3]
[null,null,null,null,null,null,2.0836000000000001,-8.2225496392492516E-3]
[null,null,null,null,null,null,2.1286,-3.3355731891992632E-2]
[null,null,null,null,null,null,2.1736,-8.0426549789075763E-2]
[null,null,null,null,null,null,2.2185999999999999,-0.15601988500520442]
[null,null,null,null,null,null,2.2284999999999999,1.9E-3]
[null,null,null,null,null,null,2.2734999999999999,2.0845290441243317E-3]
[null,null,null,null,null,null,2.3184999999999998,2.425529187586482E-3]
[null,null,null,null,null,null,2.3634999999999997,2.9400278822807623E-3]
[null,null,null,null,null,null,2.4084999999999996,3.6450525801014831E-3]
[null,null,null,null,null,null,2.4534999999999996,4.5576307329429555E-3]
[null,null,null,null,null,null,2.4984999999999995,5.6947897926994907E-3]
[null,null,null,null,null,null,2.5434999999999994,7.0735572112654004E-3]
[null,null,null,null,null,null,2.5884999999999994,8.7109604405349941E-3]
[null,null,null,null,null,null,2.6334999999999993,1.0624026932402586E-2]
[null,null,null,null,null,null,2.6784999999999992,1.2829784138762483E-2]
[null,null,null,null,null,null,2.7234999999999991,1.5345259511508998E-2]
[null,null,null,null,null,null,2.7684999999999991,1.8187480502536445E-2]
[null,null,null,null,null,null,2.813499999999999,2.1373474563739132E-2]
[null,null,null,null,null,null,2.8584999999999989,2.4920269147011367E-2]
[null,null,null,null,null,null,2.8624000000000001,8.5000000000000006E-3]
[null,null,null,null,null,null,2.9074,8.6100087028005545E-3]
[null,null,null,null,null,null,2.9523999999999999,8.7143378150009391E-3]
[null,null,null,null,null,null,2.9973999999999998,8.8127593896121011E-3]
[null,null,null,null,null,null,3.0423999999999998,8.905045479644982E-3]
[null,null,null,null,null,null,3.0873999999999997,8.990968138110525E-3]
[null,null,null,null,null,null,3.1323999999999996,9.0702994180196748E-3]
[null,null,null,null,null,null,3.1773999999999996,9.1428113723833748E-3]
[null,null,null,null,null,null,3.2223999999999995,9.2082760542125663E-3]
[null,null,null,null,null,null,3.2673999999999994,9.2664655165181943E-3]
[null,null,null,null,null,null,3.3123999999999993,9.3171518123112019E-3]
[null,null,null,null,null,null,3.3573999999999993,9.3601069946025323E-3]
[null,null,null,null,null,null,3.4023999999999992,9.3951031164031303E-3]
[null,null,null,null,null,null,3.4473999999999991,9.4219122307239358E-3]
[null,null,null,null,null,null,3.4923999999999991,9.4403063905758953E-3]
[null,null,null,null,null,null,3.537399999999999,9.4500576489699502E-3]
[null,null,null,null,null,null,3.54,2.7000000000000001E-3]
[null,null,null,null,null,null,3.5549249999999999,2.7193115363555883E-3]
[null,null,null,null,null,null,3.5698499999999997,2.7377203114238033E-3]
[null,null,null,null,null,null,3.5847749999999996,2.7552570573351133E-3]
[null,null,null,null,null,null,3.5996999999999995,2.7719525062199872E-3]
[null,null,null,null,null,null,"IsoLine","IsoLine"]